bitfinex/quotes_BTCUSD_20250904
["timestamp","ask_amount","ask_price","bid_price","bid_amount"]
[1756998570662,0.37581149,109910.0,109900.0,0.43146961]
[1756998570860,0.56074199,109920.0,109910.0,0.18196706]
[1756998571062,0.56274199,109920.0,109910.0,0.27388305]
[1756998571606,0.87880563,109920.0,109910.0,0.09191599]
[1756998572742,0.87880563,109920.0,109910.0,0.09491599]
[1756998573905,0.87880563,109920.0,109910.0,0.09791599]
[1756998574599,0.2690023,109920.0,109910.0,0.09791599]
[1756998574801,1.03444563,109920.0,109910.0,0.09791599]
[1756998575155,0.95237383,109920.0,109910.0,0.09791599]
[1756998575972,0.79673383,109920.0,109910.0,0.09791599]
[1756998576174,0.95237383,109920.0,109910.0,0.09791599]
[1756998576584,0.79673383,109920.0,109910.0,0.27915763]
[1756998576782,0.79673383,109920.0,109910.0,0.27688305]
[1756998576990,0.79673383,109920.0,109910.0,0.27588305]
[1756998577415,0.95249383,109920.0,109910.0,0.27788305]
[1756998577825,0.1869305,109920.0,109910.0,0.27785305]
[1756998578014,0.1819505,109920.0,109910.0,0.27985305]
[1756998578541,0.1839505,109920.0,109910.0,0.27985305]
[1756998579140,0.79673383,109920.0,109910.0,0.09591599]
[1756998579345,0.88864982,109920.0,109910.0,0.09591599]
[1756998579753,1.08864982,109920.0,109910.0,0.09591599]
[1756998580149,1.08864982,109920.0,109910.0,0.09391599]
[1756998580374,0.99673383,109920.0,109910.0,0.09291599]
[1756998580782,0.99673383,109920.0,109910.0,0.09391599]
[1756998585062,0.79187862,109920.0,109910.0,0.09391599]
[1756998585265,0.97597912,109920.0,109910.0,0.09391599]
[1756998586637,1.13161912,109920.0,109910.0,0.09391599]
[1756998586837,0.97597912,109920.0,109910.0,0.24955599]
[1756998587756,0.3841005,109920.0,109910.0,0.24955599]
[1756998587959,0.99711383,109920.0,109910.0,0.24955599]
[1756998589313,0.3873105,109920.0,109910.0,0.24955599]
[1756998589512,0.99711383,109920.0,109910.0,0.09391599]
[1756998590036,0.3873105,109920.0,109910.0,0.09391599]
[1756998590205,0.99711383,109920.0,109910.0,0.09391599]
[1756998593513,1.13971456,109920.0,109910.0,0.09391599]
[1756998593746,1.13971456,109920.0,109910.0,0.002]
[1756998595505,1.29535456,109920.0,109910.0,0.002]
[1756998596827,1.33982197,109920.0,109910.0,0.002]
[1756998597047,1.67982197,109920.0,109910.0,0.002]
[1756998597264,1.77909025,109920.0,109910.0,0.002]
[1756998597602,1.77909025,109920.0,109910.0,0.001]
[1756998598016,1.78109025,109920.0,109910.0,0.001]
[1756998598441,1.80549353,109920.0,109910.0,0.001]
[1756998598941,0.18200018,109890.0,109880.0,0.21508553]
[1756998599138,0.55820221,109890.0,109880.0,0.30962143]
[1756998600204,0.18199869,109900.0,109880.0,0.31062143]
[1756998600406,0.33767869,109900.0,109890.0,0.09191599]
[1756998600541,0.33767869,109900.0,109890.0,0.09494599]
[1756998600749,0.33767869,109900.0,109890.0,0.09709599]
[1756998601703,0.33982869,109900.0,109890.0,0.09709599]
[1756998601929,0.71603072,109900.0,109890.0,0.09709599]
[1756998602259,0.49541706,109900.0,109890.0,0.09406599]
[1756998602429,0.52173575,109900.0,109890.0,0.09406599]
[1756998602629,0.67741575,109900.0,109890.0,0.09709599]
[1756998602981,0.67741575,109900.0,109890.0,0.09406599]
[1756998603610,0.18200018,109890.0,109880.0,0.00046991]
[1756998603812,0.93440424,109890.0,109880.0,0.0923859]
[1756998604019,0.93655424,109890.0,109880.0,0.0923859]
[1756998604231,0.93976424,109890.0,109880.0,0.0923859]
[1756998604437,0.93976424,109890.0,109880.0,0.00046991]
[1756998604438,1.03168023,109890.0,109880.0,0.00046991]
[1756998605986,1.03168023,109890.0,109880.0,0.00246991]
[1756998606221,1.03168023,109890.0,109880.0,0.00146991]
[1756998606424,1.03168023,109890.0,109880.0,0.00046991]
[1756998607895,0.29652876,109900.0,109880.0,0.27958264]
[1756998608080,0.33768018,109890.0,109880.0,0.27958264]
[1756998608484,0.55820072,109900.0,109890.0,0.18200018]
[1756998608734,0.28549041,109910.0,109900.0,0.18198362]
[1756998608927,0.58896998,109910.0,109900.0,0.18716362]
[1756998609147,0.74464998,109910.0,109900.0,0.18416362]
[1756998609342,0.74464998,109910.0,109900.0,0.18631362]
[1756998609557,0.34892464,109910.0,109900.0,0.00518]
[1756998609756,0.18199629,109910.0,109900.0,0.2793544]
[1756998609995,0.33967629,109910.0,109900.0,0.09406599]
[1756998610199,0.18199856,109900.0,109880.0,0.18248665]
[1756998610383,0.18199856,109900.0,109890.0,0.27391617]
[1756998610531,0.18726856,109900.0,109890.0,0.09191599]
[1756998611356,0.18726856,109900.0,109880.0,0.00046991]
[1756998611357,0.18200018,109890.0,109880.0,0.00046991]
[1756998611533,0.94759436,109890.0,109880.0,0.0923859]
[1756998611738,0.95286436,109890.0,109880.0,0.0923859]
[1756998612687,1.04478035,109890.0,109880.0,0.0923859]
[1756998612893,1.04478035,109890.0,109880.0,0.00246991]
[1756998614550,1.06430131,109890.0,109880.0,0.00246991]
[1756998621269,0.90862131,109890.0,109880.0,0.00246991]
[1756998621474,1.06430131,109890.0,109880.0,0.00246991]
[1756998622752,1.40430131,109890.0,109880.0,0.00246991]
[1756998622959,1.4316629,109890.0,109880.0,0.00246991]
[1756998623542,1.21395835,109890.0,109880.0,0.00246991]
[1756998624152,1.60616798,109890.0,109880.0,0.00246991]
[1756998624367,1.74741429,109890.0,109880.0,0.00246991]
[1756998625589,1.77995424,109890.0,109880.0,0.00046991]
[1756998625791,1.62427424,109890.0,109880.0,0.00046991]
[1756998625993,1.78095424,109890.0,109880.0,0.00046991]
[1756998626531,1.74841429,109890.0,109880.0,0.00046991]
[1756998627165,1.35620466,109890.0,109880.0,0.00046991]
[1756998627570,1.74841429,109890.0,109880.0,0.00046991]
[1756998628146,1.35620466,109890.0,109880.0,0.00046991]
[1756998629219,1.74841429,109890.0,109880.0,0.00046991]
[1756998630204,1.59273429,109890.0,109880.0,0.00046991]
[1756998630383,1.33127762,109890.0,109880.0,0.00046991]
[1756998631553,1.69205351,109890.0,109880.0,0.00046991]
[1756998633531,2.12166608,109890.0,109880.0,0.00046991]
[1756998634143,0.18204988,109860.0,109850.0,0.00307]
[1756998634413,1.12712522,109860.0,109850.0,0.00307]
[1756998634782,1.15449103,109860.0,109850.0,0.00307]
[1756998635671,1.15449103,109860.0,109850.0,0.00907]
[1756998635672,1.53098379,109860.0,109850.0,0.00907]
[1756998635843,1.54567626,109860.0,109850.0,0.00907]
[1756998636106,1.55094626,109860.0,109850.0,0.006]
[1756998636325,1.91044444,109860.0,109850.0,0.006]
[1756998636509,1.77969148,109860.0,109850.0,0.002]
[1756998636654,1.91044444,109860.0,109850.0,0.002]
[1756998636876,0.18208302,109840.0,109830.0,0.00347]
[1756998637085,1.09074854,109840.0,109830.0,0.09538599]
[1756998637325,1.1497784,109840.0,109830.0,0.09538599]
[1756998638103,0.39726395,109840.0,109830.0,0.09538599]
[1756998638309,1.15024947,109840.0,109830.0,0.09838599]
[1756998639151,1.15024947,109840.0,109830.0,0.09938599]
[1756998639580,0.05950093,109840.0,109830.0,0.27841559]
[1756998639788,0.37797275,109840.0,109830.0,0.27841559]
[1756998639998,0.55904685,109840.0,109830.0,0.27841559]
[1756998640452,0.71472685,109840.0,109830.0,0.27841559]
[1756998641058,0.71472685,109840.0,109830.0,0.09631599]
[1756998641270,0.80440768,109840.0,109830.0,0.09631599]
[1756998641483,0.80440768,109840.0,109830.0,0.27841559]
[1756998641886,0.71472685,109840.0,109830.0,0.27841559]
[1756998642104,0.33823409,109840.0,109830.0,0.27841559]
[1756998642310,0.71472685,109840.0,109830.0,0.27841559]
[1756998643033,0.33823409,109840.0,109830.0,0.27841559]
[1756998643238,0.71472685,109840.0,109830.0,0.27841559]
[1756998643872,0.71472685,109840.0,109830.0,0.09631599]
[1756998644929,0.80664284,109840.0,109830.0,0.09631599]
[1756998645700,0.71472685,109840.0,109830.0,0.09631599]
[1756998647150,0.00047107,109840.0,109830.0,0.28069183]
[1756998647351,0.71472685,109840.0,109830.0,0.09631599]
[1756998647690,0.71472685,109840.0,109830.0,0.28069183]
[1756998647905,0.00047107,109840.0,109830.0,0.27841559]
[1756998648118,0.00047107,109840.0,109830.0,0.67584717]
[1756998648328,0.00047107,109840.0,109830.0,0.29935441]
[1756998648329,0.55904685,109840.0,109830.0,0.29935441]
[1756998648545,0.55904685,109840.0,109830.0,0.45503441]
[1756998648754,0.96958622,109840.0,109830.0,0.09631599]
[1756998649695,0.99777899,109840.0,109830.0,0.09631599]
[1756998649933,0.96958622,109840.0,109830.0,0.09631599]
[1756998650653,1.12526622,109840.0,109830.0,0.09631599]
[1756998653454,1.12526622,109840.0,109830.0,0.0044]
[1756998653897,0.3722807,109840.0,109830.0,0.0044]
[1756998654172,2.05631749,109840.0,109830.0,1e-08]
[1756998654390,2.13014861,109840.0,109830.0,1e-08]
[1756998654635,3.34364527,109840.0,109830.0,1e-08]
[1756998654856,2.23494852,109840.0,109830.0,1e-08]
[1756998655072,0.5220996,109830.0,109820.0,0.0004]
[1756998655285,2.03499331,109830.0,109820.0,0.0004]
[1756998655717,0.90551503,109830.0,109820.0,0.0004]
[1756998655924,2.03499331,109830.0,109820.0,0.0004]
[1756998656147,2.09257331,109830.0,109820.0,0.0004]
[1756998656363,2.14569312,109830.0,109820.0,0.0004]
[1756998656802,1.93789331,109830.0,109820.0,0.0004]
[1756998657029,2.09357331,109830.0,109820.0,0.0004]
[1756998657257,2.11451213,109830.0,109820.0,0.0004]
[1756998657476,1.93889331,109830.0,109820.0,0.0004]
[1756998657716,2.13245247,109830.0,109820.0,0.0004]
[1756998657960,1.6920405,109830.0,109820.0,0.0004]
[1756998658177,1.6970405,109830.0,109820.0,0.0004]
[1756998658398,0.57600305,109830.0,109820.0,0.0004]
[1756998658610,1.12028197,109830.0,109820.0,0.0004]
[1756998658815,0.72427236,109830.0,109820.0,0.0004]
[1756998659018,0.70724909,109830.0,109820.0,0.0004]
[1756998659231,1.07974185,109830.0,109820.0,0.0004]
[1756998659411,1.17165784,109830.0,109820.0,0.0004]
[1756998659715,0.79816508,109830.0,109820.0,0.0004]
[1756998659915,1.17465784,109830.0,109820.0,0.0004]
[1756998660136,0.64248508,109830.0,109820.0,0.0004]
[1756998660350,1.16865784,109830.0,109820.0,0.0004]
[1756998660552,1.17065784,109830.0,109820.0,0.0004]
[1756998661511,1.01497784,109830.0,109820.0,0.0004]
[1756998661772,1.15118835,109830.0,109820.0,0.0004]
[1756998661979,1.54715003,109830.0,109820.0,0.0004]
[1756998662187,0.79416451,109830.0,109820.0,0.0004]
[1756998662600,1.17065727,109830.0,109820.0,0.0004]
[1756998663040,1.54715003,109830.0,109820.0,0.0004]
[1756998663629,1.17065727,109830.0,109820.0,0.0004]
[1756998664047,1.54715003,109830.0,109820.0,0.0004]
[1756998665340,1.63906602,109830.0,109820.0,0.0004]
[1756998665803,1.66644332,109830.0,109820.0,0.0004]
[1756998666990,1.51076332,109830.0,109820.0,0.0004]
[1756998667216,1.66644332,109830.0,109820.0,0.0004]
[1756998668410,0.9134578,109830.0,109820.0,0.0004]
[1756998668616,1.28995056,109830.0,109820.0,0.0004]
[1756998671505,1.66644332,109830.0,109820.0,0.0004]
[1756998671898,1.69137036,109830.0,109820.0,0.0004]
[1756998672300,2.09605589,109830.0,109820.0,0.0004]
[1756998672476,1.71570723,109830.0,109820.0,0.0004]
[1756998674136,1.74824718,109830.0,109820.0,0.0004]
[1756998674339,0.99526166,109830.0,109820.0,0.0004]
[1756998674783,1.74824718,109830.0,109820.0,0.0004]
[1756998675680,2.12473994,109830.0,109820.0,1e-08]
[1756998675917,0.18213277,109810.0,109800.0,0.10274607]
[1756998676093,1.69800924,109810.0,109800.0,0.10274607]
[1756998676298,1.39897794,109810.0,109800.0,0.10274607]
[1756998676706,0.51769784,109810.0,109800.0,0.10274607]
[1756998677019,1.37328355,109810.0,109800.0,0.10274607]
[1756998677292,0.62029803,109810.0,109800.0,0.10274607]
[1756998677502,1.80923438,109810.0,109800.0,0.10274607]
[1756998677714,1.42640336,109810.0,109800.0,0.10274607]
[1756998678373,1.33655468,109800.0,109790.0,1e-08]
[1756998678588,1.8021464,109800.0,109790.0,1e-08]
[1756998678767,0.64447535,109800.0,109790.0,1e-08]
[1756998679006,1.7490277,109800.0,109790.0,1e-08]
[1756998679483,0.61954942,109800.0,109790.0,1e-08]
[1756998679712,1.74949848,109800.0,109790.0,1e-08]
[1756998679928,1.53248572,109800.0,109790.0,1e-08]
[1756998680143,1.78837591,109800.0,109790.0,1e-08]
[1756998680354,0.81837541,109800.0,109790.0,1e-08]
[1756998680561,2.00489843,109800.0,109790.0,0.00100001]
[1756998680798,0.71594015,109800.0,109790.0,0.00100001]
[1756998680981,2.34549843,109800.0,109790.0,0.00200001]
[1756998681252,2.34549843,109800.0,109780.0,1e-08]
[1756998681253,0.62019726,109790.0,109780.0,1e-08]
[1756998681465,0.62019726,109790.0,109750.0,0.1708315]
[1756998681466,0.52221574,109760.0,109750.0,0.0912315]
[1756998681709,0.75197574,109760.0,109750.0,0.0912315]
[1756998681925,0.77143385,109760.0,109750.0,0.0912315]
[1756998682114,0.79882982,109760.0,109750.0,0.0912315]
[1756998682569,1.38917534,109760.0,109750.0,0.0912315]
[1756998682785,0.93068852,109760.0,109750.0,0.0912315]
[1756998683007,0.18229878,109710.0,109700.0,0.28187573]
[1756998683229,0.23452866,109710.0,109700.0,0.28187573]
[1756998683439,0.05222988,109710.0,109700.0,0.28187573]
[1756998683659,0.00100892,109710.0,109700.0,0.28187573]
[1756998683877,0.18140892,109710.0,109700.0,0.46419113]
[1756998684092,0.1804,109710.0,109700.0,0.28187573]
[1756998684310,0.1804,109710.0,109700.0,0.37379172]
[1756998684533,0.0004702,109710.0,109700.0,0.37379172]
[1756998684798,0.0004702,109710.0,109700.0,0.61315712]
[1756998685024,0.18276898,109710.0,109700.0,0.45178054]
[1756998685248,0.18276898,109710.0,109700.0,0.37379172]
[1756998685435,0.36456898,109710.0,109700.0,0.28187573]
[1756998686173,0.18276898,109710.0,109700.0,0.28187573]
[1756998686371,0.0004702,109710.0,109700.0,0.37379172]
[1756998686620,0.3664979,109710.0,109700.0,0.37379172]
[1756998686837,0.0004702,109710.0,109700.0,0.45178054]
[1756998687050,0.18276898,109710.0,109700.0,0.45178054]
[1756998687277,0.18276898,109710.0,109700.0,0.37379172]
[1756998687707,0.18276898,109710.0,109700.0,0.39473054]
[1756998688377,0.0004702,109710.0,109700.0,0.57704594]
[1756998688598,0.0004702,109710.0,109700.0,1.24626042]
[1756998688805,0.0004702,109710.0,109700.0,0.63409594]
[1756998689232,0.0004702,109710.0,109700.0,0.81785594]
[1756998689872,0.0004702,109710.0,109700.0,1.43002042]
[1756998690088,0.0004702,109710.0,109700.0,1.77002042]
[1756998690303,0.0004702,109710.0,109700.0,1.77082042]
[1756998690515,0.0004702,109710.0,109700.0,1.18804933]
[1756998690723,0.0004702,109710.0,109700.0,1.80121381]
[1756998690949,0.0004702,109710.0,109700.0,0.48217393]
[1756998691169,0.18276898,109710.0,109700.0,0.45378054]
[1756998691384,0.18276898,109710.0,109700.0,0.37579172]
[1756998691811,0.18276898,109710.0,109700.0,0.37779172]
[1756998692023,0.36868898,109710.0,109700.0,0.37779172]
[1756998692276,0.18276898,109710.0,109700.0,0.37779172]
[1756998692511,0.21016925,109710.0,109700.0,0.37779172]
[1756998692725,0.0004702,109710.0,109700.0,0.63809594]
[1756998692942,0.0004702,109710.0,109700.0,0.82441594]
[1756998693357,0.18276898,109710.0,109700.0,0.45578054]
[1756998693580,0.86209346,109710.0,109700.0,0.28587573]
[1756998693813,0.24992898,109710.0,109700.0,0.28587573]
[1756998694034,0.43688898,109710.0,109700.0,0.28587573]
[1756998694463,0.1823819,109660.0,109650.0,0.17312328]
[1756998694687,1.13454638,109660.0,109650.0,0.17312328]
[1756998694920,0.5223819,109660.0,109650.0,0.17312328]
[1756998695135,1.13454638,109660.0,109650.0,0.17312328]
[1756998695348,1.16196551,109660.0,109650.0,0.17312328]
[1756998695562,1.22646237,109660.0,109650.0,0.17312328]
[1756998695768,1.25388378,109660.0,109650.0,0.17312328]
[1756998695978,1.2543534,109660.0,109650.0,0.17312328]
[1756998696217,1.28239635,109660.0,109650.0,0.17312328]
[1756998696614,1.28239635,109660.0,109650.0,0.17512328]
[1756998696846,1.26791055,109660.0,109650.0,0.17512328]
[1756998697054,1.26791055,109660.0,109650.0,0.17612328]
[1756998697273,0.00046962,109660.0,109650.0,0.36096328]
[1756998697497,0.00046962,109660.0,109650.0,0.72337663]
[1756998697706,0.00046962,109660.0,109650.0,0.78134663]
[1756998697930,0.00046962,109660.0,109650.0,0.39024927]
[1756998698151,0.00147854,109660.0,109650.0,0.70327781]
[1756998698365,0.00046962,109660.0,109650.0,0.72441663]
[1756998699026,0.00046962,109660.0,109650.0,0.78146663]
[1756998699230,0.00046962,109660.0,109650.0,0.78142663]
[1756998699659,0.00046962,109660.0,109650.0,1.55097111]
[1756998699911,0.00046962,109660.0,109650.0,1.83877111]
[1756998700179,0.00046962,109660.0,109650.0,0.93880663]
[1756998700390,0.00046962,109660.0,109650.0,1.12656663]
[1756998700600,0.00046962,109660.0,109650.0,1.12556663]
[1756998700806,0.00046962,109660.0,109650.0,1.59997111]
[1756998701017,0.00046962,109660.0,109650.0,0.93780663]
[1756998701231,0.00046962,109660.0,109650.0,0.76754781]
[1756998701447,0.18285152,109660.0,109650.0,0.33719927]
[1756998701663,0.18285152,109660.0,109650.0,0.43496328]
[1756998701664,0.25639783,109660.0,109650.0,0.43496328]
[1756998701875,0.00046962,109660.0,109650.0,0.71249781]
[1756998702299,0.00147854,109660.0,109650.0,0.71249781]
[1756998702515,0.00046962,109660.0,109650.0,0.71249781]
[1756998702736,0.00046962,109660.0,109650.0,0.73143663]
[1756998702951,0.00046962,109660.0,109650.0,0.36135809]
[1756998703165,0.00046962,109660.0,109650.0,0.73251663]
[1756998703373,0.00046962,109660.0,109650.0,0.72633663]
[1756998703590,0.00046962,109660.0,109650.0,0.43008328]
[1756998703591,0.18285152,109660.0,109650.0,0.43008328]
[1756998703820,0.795016,109660.0,109650.0,0.42808328]
[1756998704050,0.800076,109660.0,109650.0,0.24028328]
[1756998704269,1.140076,109660.0,109650.0,0.17312328]
[1756998704481,0.55532915,109660.0,109650.0,0.17312328]
[1756998704692,0.64724514,109660.0,109650.0,0.17312328]
[1756998704900,1.25940962,109660.0,109650.0,0.17312328]
[1756998705550,1.46705943,109660.0,109650.0,0.17312328]
[1756998705772,1.56226238,109660.0,109650.0,0.17312328]
[1756998705986,1.63191243,109660.0,109650.0,0.17312328]
[1756998706205,1.6244666,109660.0,109650.0,0.17312328]
[1756998706461,1.46430955,109660.0,109650.0,0.17312328]
[1756998706687,1.60620316,109660.0,109650.0,0.17312328]
[1756998706906,0.86562528,109660.0,109650.0,0.17312328]
[1756998707116,1.58206534,109660.0,109650.0,0.17312328]
[1756998707370,1.60381894,109660.0,109650.0,0.17312328]
[1756998707594,0.99165446,109660.0,109650.0,0.17312328]
[1756998707774,1.57577599,109660.0,109650.0,0.17312328]
[1756998708268,0.77525151,109660.0,109650.0,0.17312328]
[1756998708480,1.57617599,109660.0,109650.0,0.17312328]
[1756998708929,1.60051381,109660.0,109650.0,0.17312328]
[1756998709421,1.60051381,109660.0,109650.0,0.17834328]
[1756998709422,0.59393678,109660.0,109650.0,0.17834328]
[1756998709669,1.15434581,109660.0,109650.0,0.17312328]
[1756998709894,1.15641581,109660.0,109650.0,0.17312328]
[1756998710129,0.54425133,109660.0,109650.0,0.17312328]
[1756998710368,1.15940581,109660.0,109650.0,0.17312328]
[1756998710611,1.2513218,109660.0,109650.0,0.17312328]
[1756998710846,1.28302545,109660.0,109650.0,0.17312328]
[1756998711313,1.4714804,109660.0,109650.0,0.17312328]
[1756998711582,1.2819604,109660.0,109650.0,0.17312328]
[1756998711830,1.21719939,109660.0,109650.0,0.17312328]
[1756998712073,1.39958129,109660.0,109650.0,0.17312328]
[1756998712528,1.44166072,109660.0,109650.0,0.17312328]
[1756998712965,1.44166241,109660.0,109650.0,0.17312328]
[1756998713175,0.82949793,109660.0,109650.0,0.17312328]
[1756998713379,1.39958298,109660.0,109650.0,0.17312328]
[1756998713807,0.7874185,109660.0,109650.0,0.17312328]
[1756998714017,1.39958298,109660.0,109650.0,0.17312328]
[1756998714248,1.21022298,109660.0,109650.0,0.17312328]
[1756998714465,1.30240699,109660.0,109650.0,0.17512328]
[1756998714682,1.30240699,109660.0,109650.0,0.17834328]
[1756998714683,0.81387619,109660.0,109650.0,0.17834328]
[1756998714894,0.01932981,109660.0,109650.0,0.27025927]
[1756998715104,0.00100892,109660.0,109650.0,0.64177781]
[1756998715336,0.00100892,109660.0,109650.0,0.45615927]
[1756998715562,0.18339082,109660.0,109650.0,0.17834328]
[1756998715777,0.1823819,109660.0,109650.0,0.17512328]
[1756998715992,0.79454638,109660.0,109650.0,0.17512328]
[1756998716200,0.79454638,109660.0,109650.0,0.17834328]
[1756998716201,0.1823819,109660.0,109650.0,0.17834328]
[1756998716413,0.79454638,109660.0,109650.0,0.17834328]
[1756998716598,0.1823819,109660.0,109650.0,0.17834328]
[1756998717077,0.1823819,109660.0,109650.0,0.17512328]
[1756998717497,0.79454638,109660.0,109650.0,0.36074182]
[1756998717724,0.79454638,109660.0,109650.0,0.17834328]
[1756998717950,0.1823819,109660.0,109650.0,0.55158182]
[1756998718161,0.1823819,109660.0,109650.0,0.64349781]
[1756998718582,0.1823819,109660.0,109650.0,0.45787927]
[1756998718795,0.79454638,109660.0,109650.0,0.45743927]
[1756998719002,0.79454638,109660.0,109650.0,0.64305781]
[1756998719232,0.1823819,109660.0,109650.0,0.64305781]
[1756998719469,0.21888065,109680.0,109660.0,0.1823819]
[1756998719688,0.18337428,109670.0,109660.0,4.714e-05]
[1756998719899,0.8189854,109670.0,109660.0,4.714e-05]
[1756998720112,0.8159954,109670.0,109660.0,4.714e-05]
[1756998720325,0.20682092,109670.0,109660.0,4.714e-05]
[1756998720566,0.8189854,109670.0,109660.0,4.714e-05]
[1756998720983,0.8149254,109670.0,109660.0,0.00204714]
[1756998721194,0.20782092,109670.0,109660.0,4.714e-05]
[1756998721403,0.8199854,109670.0,109660.0,4.714e-05]
[1756998721614,0.826308,109670.0,109660.0,4.714e-05]
[1756998721870,0.85064582,109670.0,109660.0,4.714e-05]
[1756998722081,0.94256181,109670.0,109660.0,4.714e-05]
[1756998722293,1.31510176,109670.0,109660.0,4.714e-05]
[1756998722504,0.73464093,109670.0,109660.0,4.714e-05]
[1756998722724,1.37244189,109670.0,109660.0,4.714e-05]
[1756998722936,0.72857376,109670.0,109660.0,4.714e-05]
[1756998723169,1.30819829,109670.0,109660.0,4.714e-05]
[1756998723607,0.97449924,109660.0,109650.0,0.17312328]
[1756998723817,0.97449924,109660.0,109650.0,0.1732088]
[1756998723818,1.27600206,109660.0,109650.0,0.1732088]
[1756998724032,1.27807206,109660.0,109650.0,0.1732088]
[1756998724253,0.63348722,109660.0,109650.0,0.1732088]
[1756998724480,1.2454117,109660.0,109650.0,0.1732088]
[1756998726042,1.0542517,109660.0,109650.0,0.1732088]
[1756998726259,0.66030348,109660.0,109650.0,0.1752088]
[1756998726480,0.28708158,109660.0,109650.0,0.1784288]
[1756998726698,0.22367906,109660.0,109650.0,0.45274333]
[1756998726919,0.22367906,109660.0,109650.0,0.64346333]
[1756998727166,1.01822544,109660.0,109650.0,0.26712479]
[1756998727369,0.9938948,109660.0,109650.0,0.26712479]
[1756998727578,0.9938948,109660.0,109650.0,0.27034479]
[1756998727794,0.19934842,109660.0,109650.0,0.45274333]
[1756998728004,0.19934842,109660.0,109650.0,0.47368215]
[1756998728893,0.17995286,109660.0,109650.0,0.81368215]
[1756998729339,0.17995286,109660.0,109650.0,1.48552663]
[1756998729605,0.17995286,109660.0,109650.0,0.87336215]
[1756998730056,0.17995286,109660.0,109650.0,1.06416215]
[1756998730482,0.17995286,109660.0,109650.0,1.72632663]
[1756998730690,0.17995286,109660.0,109650.0,1.72732663]
[1756998730903,0.17995286,109660.0,109650.0,1.53652663]
[1756998731115,0.17995286,109660.0,109650.0,1.73968123]
[1756998731321,0.17995286,109660.0,109650.0,0.72696215]
[1756998731530,0.17995286,109660.0,109650.0,0.53636215]
[1756998731748,0.36233476,109660.0,109650.0,0.66808215]
[1756998731964,0.38181955,109660.0,109650.0,0.46474479]
[1756998732145,0.38181955,109660.0,109650.0,0.64714333]
[1756998732400,0.99398403,109660.0,109650.0,0.48552361]
[1756998732821,0.99398403,109660.0,109650.0,0.27434479]
[1756998733030,0.38181955,109660.0,109650.0,0.26812479]
[1756998733250,0.99398403,109660.0,109650.0,0.26812479]
[1756998733480,0.99398403,109660.0,109650.0,0.26912479]
[1756998733691,1.01831467,109660.0,109650.0,0.26912479]
[1756998733896,1.05075093,109660.0,109650.0,0.26912479]
[1756998734105,1.02858029,109660.0,109650.0,0.26712479]
[1756998734322,1.08389497,109660.0,109650.0,0.1752088]
[1756998735589,1.27337497,109660.0,109650.0,0.1752088]
[1756998735804,0.41425581,109660.0,109650.0,0.26909479]
[1756998736049,1.24025685,109660.0,109650.0,0.27224479]
[1756998736488,1.24025685,109660.0,109650.0,0.26909479]
[1756998736912,1.05077685,109660.0,109650.0,0.26909479]
[1756998737159,1.05077685,109660.0,109650.0,0.27224479]
[1756998737608,0.43861237,109660.0,109650.0,0.45464333]
[1756998737835,0.40617611,109660.0,109650.0,0.27224479]
[1756998738753,1.02369059,109660.0,109650.0,0.26712479]
[1756998738980,0.99460698,109660.0,109650.0,0.26909479]
[1756998739631,0.3824425,109660.0,109650.0,0.27224479]
[1756998740278,0.36295771,109660.0,109650.0,0.27224479]
[1756998740690,0.97512219,109660.0,109650.0,0.27224479]
[1756998741121,0.36295771,109660.0,109650.0,0.27224479]
[1756998741564,0.36295771,109660.0,109650.0,0.47558215]
[1756998742511,0.18057581,109660.0,109650.0,0.47558215]
[1756998745833,0.18057581,109660.0,109650.0,0.81558215]
[1756998746078,0.18057581,109660.0,109650.0,1.00298215]
[1756998746730,0.76184623,109660.0,109650.0,0.26712479]
[1756998746946,0.79354988,109660.0,109650.0,0.26712479]
[1756998747167,0.76184623,109660.0,109650.0,0.1752088]
[1756998747655,0.36511771,109660.0,109650.0,0.1752088]
[1756998747858,0.76184623,109660.0,109650.0,0.1742088]
[1756998748069,0.76184623,109660.0,109650.0,0.1732088]
[1756998750914,0.36830771,109660.0,109650.0,0.1732088]
[1756998751178,0.76184623,109660.0,109650.0,0.1732088]
[1756998751434,0.36830771,109660.0,109650.0,0.1732088]
[1756998751670,0.76184623,109660.0,109650.0,0.1732088]
[1756998751926,0.95700623,109660.0,109650.0,0.1732088]
[1756998753768,0.56346771,109660.0,109650.0,0.1732088]
[1756998754000,0.95700623,109660.0,109650.0,0.1732088]
[1756998754209,1.42062587,109660.0,109650.0,0.1732088]
[1756998754612,1.38892222,109660.0,109650.0,0.1732088]
[1756998755321,1.10184623,109660.0,109650.0,0.1732088]
[1756998755520,0.90206771,109660.0,109650.0,0.1732088]
[1756998755697,1.29560623,109660.0,109650.0,0.1732088]
[1756998757234,1.29516623,109660.0,109650.0,0.1732088]
[1756998757963,1.38708222,109660.0,109650.0,0.1732088]
[1756998760084,1.78062074,109660.0,109650.0,0.1732088]
[1756998760818,1.38708222,109660.0,109650.0,0.1732088]
[1756998761019,1.78062074,109660.0,109650.0,0.1732088]
[1756998761655,1.78062074,109660.0,109650.0,1e-08]
[1756998761862,1.83700074,109660.0,109650.0,1e-08]
[1756998762062,1.86504369,109660.0,109650.0,1e-08]
[1756998762272,1.88455235,109660.0,109650.0,1e-08]
[1756998762476,0.55044149,109650.0,109640.0,1e-08]
[1756998762688,1.48064683,109650.0,109640.0,1e-08]
[1756998762893,1.53572683,109650.0,109640.0,1e-08]
[1756998763094,1.50402318,109650.0,109640.0,1e-08]
[1756998763571,1.69786318,109650.0,109640.0,1e-08]
[1756998763772,1.75424318,109650.0,109640.0,1e-08]
[1756998763974,0.18244845,109620.0,109610.0,0.17639463]
[1756998764210,0.83692697,109620.0,109610.0,0.17639463]
[1756998764415,1.28488226,109620.0,109610.0,0.17639463]
[1756998765277,1.09326302,109620.0,109610.0,0.17639463]
[1756998765498,0.8911245,109620.0,109610.0,0.17639463]
[1756998765706,1.09326302,109620.0,109610.0,0.17639463]
[1756998765919,0.79904851,109620.0,109610.0,0.17846463]
[1756998766129,1.19258703,109620.0,109610.0,0.17639463]
[1756998766750,0.79888851,109620.0,109610.0,0.17846463]
[1756998766952,0.60470851,109620.0,109610.0,0.17846463]
[1756998767157,1.18924703,109620.0,109610.0,0.17850463]
[1756998767362,0.99626703,109620.0,109610.0,0.17850463]
[1756998767565,0.79372851,109620.0,109610.0,0.18171463]
[1756998768514,0.79570851,109620.0,109610.0,0.17643463]
[1756998768737,1.19234703,109620.0,109610.0,0.17850463]
[1756998769135,1.19234703,109620.0,109610.0,0.17643463]
[1756998769775,1.18924703,109620.0,109610.0,0.17850463]
[1756998769926,0.79570851,109620.0,109610.0,0.17850463]
[1756998770133,1.18924703,109620.0,109610.0,0.17850463]
[1756998770335,1.18682703,109620.0,109610.0,0.17850463]
[1756998770500,0.79328851,109620.0,109610.0,0.17850463]
[1756998770699,0.79526851,109620.0,109610.0,0.17850463]
[1756998770901,1.18880703,109620.0,109610.0,0.17850463]
[1756998771294,0.60272851,109620.0,109610.0,0.17850463]
[1756998771496,1.18840703,109620.0,109610.0,0.17850463]